Cogmind - Beta 12 @@@ ROGUE MODE // 2023.03.31 @ 12:13:14 Player: Exp. Geonium Core Result: Destroyed by S-43 Plague with Heavy Machine Gun Performance ------------- Evolutions (7) 3500 Regions Visited (16) 3200 Robots Destroyed (147) 735 Value Destroyed (3388) 3388 Prototype IDs (17) 340 Alien Tech Used (0) 0 Bonus (-2264) -2264 TOTAL SCORE: 8899 Bonus ------- High Alert Combat Kills 158 Follower Combat Kills 395 Met Data Miner 300 Friendly Fire -3117 Cogmind --------- Core Integrity 0/1300 Matter 208/300 Energy 100/100 System Corruption 2% Temperature Cool (0) Movement Core (50) Location -3/Research Parts ------- > --- POWER (1) -------- (None) > --- PROPULSION (6) --- (None) > --- UTILITY (12) ----- Advanced Signal Interpreter Improved Target Analyzer Improved Target Analyzer Improved Hacking Suite System Shield > --- WEAPON (2) ------- (None) > --- INVENTORY (5) ---- Light Antimatter Reactor Stasis Canceller Makeshift ECM Suite Peak State ------------ > --- POWER ------------ (None) > --- PROPULSION ------- Heavy Treads Heavy Treads Heavy Treads > --- UTILITY ---------- Advanced Weight Redist. System Advanced Signal Interpreter Improved Target Analyzer Improved Target Analyzer Improved Utility Shielding Improved Hacking Suite Improved Hacking Suite Advanced Hacking Suite System Shield > --- WEAPON ----------- Disruptor Cannon > --- INVENTORY -------- Makeshift Flight Unit Stasis Canceller Makeshift ECM Suite Makeshift Shrapnel Gun Heavy Machine Gun [Rating: 84] Favorites ----------- Power Light Angular Momentum Engine Engine Light Angular Momentum Engine Power Core Light Nuclear Core Reactor Micro Antimatter Reactor Propulsion Cesium-ion Thruster Treads Light Treads Leg Aluminum Leg Wheel Wheel Hover Unit Combat Gravmag System Flight Unit Cesium-ion Thruster Utility Improved Hacking Suite Device Improved Sensor Array Storage Large Storage Unit Processor Improved Signal Interpreter Hackware Improved Hacking Suite Protection Light Armor Plating Weapon Mini Grenade Launcher Energy Gun Improved Medium Laser Energy Cannon Advanced Beam Cannon Ballistic Gun Light Assault Rifle Launcher Mini Grenade Launcher Special Weapon Improved Plasma Cutter Impact Weapon Heavy Mace Slashing Weapon Axe Build | -11 -10 -10 -9 -8 -7 -7 -7 -7 -6 -6 -6 -5 -5 -5 -4 -3 ------- Run | Jun Mat Min Mat Mat Fac Low Low Dat Pro Fac Ext Fac Upp Upp Fac Res Slots Evolved 14 | . . . 2 2 2 . . . . 2 . 2 . . 2 2 Power . | . . . . . . . . . . . . . . . . . Propulsion 4 | . . . 1 1 . . . . . 1 . 1 . . . . Utility 10 | . . . 1 1 2 . . . . 1 . 1 . . 2 2 Weapon . | . . . . . . . . . . . . . . . . . Parts Attached 168 | . 9 2 19 16 26 1 6 . 4 28 8 22 5 . 13 9 Power 13 | . 2 . 3 . 2 . 1 . . 3 . 1 . . . 1 Engine 8 | . 1 . 3 . 2 . . . . 2 . . . . . . Core 4 | . 1 . . . . . 1 . . 1 . 1 . . . . Reactor 1 | . . . . . . . . . . . . . . . . 1 Propulsion 47 | . 3 . 7 5 5 . 1 . 1 3 1 7 1 . 8 5 Treads 17 | . 2 . 7 4 . . . . . . . . . . 4 . Leg . | . . . . . . . . . . . . . . . . . Wheel 1 | . 1 . . . . . . . . . . . . . . . Hover 9 | . . . . . . . . . . . . 4 . . 4 1 Flight 20 | . . . . 1 5 . 1 . 1 3 1 3 1 . . 4 Utility 79 | . 4 1 3 5 14 1 4 . 3 22 6 10 4 . 2 . Device 28 | . . . . . 5 . 3 . 1 9 2 6 1 . 1 . Storage 1 | . 1 . . . . . . . . . . . . . . . Processor 8 | . . . 1 3 1 . . . . 1 . . 2 . . . Hackware 10 | . . . . 1 3 1 . . . 2 1 1 . . 1 . Protection 32 | . 3 1 2 1 5 . 1 . 2 10 3 3 1 . . . Artifact . | . . . . . . . . . . . . . . . . . Weapon 29 | . . 1 6 6 5 . . . . . 1 4 . . 3 3 Energy Gun 1 | . . . . 1 . . . . . . . . . . . . Energy Cannon 7 | . . . 1 3 . . . . . . . 2 . . 1 . Ballistic Gun 9 | . . 1 3 1 . . . . . . . . . . 2 2 Ballistic Cannon . | . . . . . . . . . . . . . . . . . Launcher 6 | . . . 2 1 2 . . . . . . 1 . . . . Special Weapon 1 | . . . . . . . . . . . . . . . . 1 Impact Weapon 3 | . . . . . 2 . . . . . 1 . . . . . Slashing Weapon 2 | . . . . . 1 . . . . . . 1 . . . . Piercing Weapon . | . . . . . . . . . . . . . . . . . Special Melee Weapon . | . . . . . . . . . . . . . . . . . Unidentified Prototypes 4 | . . . 2 2 . . . . . . . . . . . . Parts Lost 50 | . 2 1 1 2 1 . 2 . . 4 1 18 1 . 6 11 Power 5 | . 1 . . . . . 1 . . . . 2 . . . 1 Propulsion 29 | . 1 . . 2 1 . 1 . . 3 1 10 . . 5 5 Utility 10 | . . . 1 . . . . . . 1 . 3 1 . 1 3 Weapon 6 | . . 1 . . . . . . . . . 3 . . . 2 Highest Loss Streak 16 | . 1 1 1 1 1 . 2 . . 3 1 16 1 . 6 8 To Critical Strikes 1 | . . 1 . . . . . . . . . . . . . . Average Slot Usage (%) 92 | . 98 100 99 94 97 100 99 100 100 96 90 86 35 52 65 45 Engine 6 | . 5 14 11 9 7 7 3 . . 5 6 3 . . . . Core 1 | . 8 . . . . . 4 7 7 . . . . . . . Treads 13 | . 24 28 32 30 . . . . . . . . . . 8 . Hover 1 | . . . . . . . . . . . . 13 . . 8 2 Flight 12 | . . . . . 28 30 29 30 30 29 30 14 1 5 . 5 Device 3 | . . . . . 7 7 6 7 8 7 2 5 1 5 5 . Storage 5 | . 14 14 11 9 . . . . . . . . . . . . Processor 7 | . . . 11 17 7 7 7 7 7 6 6 5 11 17 15 14 Hackware 13 | . . . . 6 22 23 23 23 23 26 25 25 17 17 21 14 Protection 8 | . 13 14 10 2 6 7 7 7 6 4 9 5 2 5 5 3 Energy Cannon 1 | . . . 6 8 . . . . . . . . . . . . Ballistic Gun 7 | . 28 28 12 4 . . . . . . . . . . . . Launcher 3 | . . . 3 5 6 7 7 7 7 6 1 . . . . . Impact Weapon 2 | . . . . . 2 7 7 7 7 6 5 3 . . . . Naked Turns . | . . . . . . . . . . . . . . . . . Heaviest Build 39 | 11 31 31 39 39 20 13 20 13 18 23 24 28 2 2 10 15 Greatest Support 80 | 20 40 40 60 80 20 20 20 20 20 23 23 53 8 3 22 26 Greatest Overweight (x) 5 | . 2 . . . . . . . . 1 5 1 . . 3 . Average Overweight (x) . | . . . . . . . . . . . . . . . . . Largest Inventory Capacity 15 | . 15 15 15 15 15 5 5 5 5 5 5 5 5 5 5 5 Average Capacity 9 | . 14 15 15 15 5 5 5 5 5 5 5 5 5 5 5 5 Most Carried 15 | . 15 15 15 15 15 5 5 4 5 5 5 5 5 5 5 5 Average Carried 8 | . 12 14 14 14 4 4 4 4 4 4 3 4 4 5 4 3 Final Capacity 15 | 8 15 15 15 15 5 5 5 5 5 5 5 5 5 5 5 5 Final Carried 15 | 6 15 15 15 15 5 5 4 4 5 5 4 3 5 5 5 3 Class Distribution -------------------- 38% | Mutant 34% | Hacker-Sprinter 20% | Hacker-Mutant 5% | Scavenger-Mutant Dominant Class ---------------- Mutant | -10/Materials Mutant | -10/Mines Mutant | -9/Materials Mutant | -8/Materials Hacker-Sprinter | -7/Factory Hacker-Sprinter | -7/Lower Caves Hacker-Sprinter | -7/Lower Caves Hacker-Sprinter | -7/Data Miner Hacker-Sprinter | -6/Proximity Caves Hacker-Sprinter | -6/Factory Hacker-Sprinter | -6/Extension Hacker-Mutant | -5/Factory Hacker-Mutant | -5/Upper Caves Hacker-Mutant | -5/Upper Caves Hacker-Mutant | -4/Factory Hacker-Mutant | -3/Research Resources | -11 -10 -10 -9 -8 -7 -7 -7 -7 -6 -6 -6 -5 -5 -5 -4 -3 ----------- Run | Jun Mat Min Mat Mat Fac Low Low Dat Pro Fac Ext Fac Upp Upp Fac Res Matter Collected 2622 | 175 345 82 432 265 253 22 . . 103 145 327 235 47 . 83 108 Remotely . | . . . . . . . . . . . . . . . . . Salvage Created 4608 | . 828 202 1310 779 268 . 36 18 . 162 114 545 . . . 346 Parts 269 | . 55 10 91 49 15 . 3 . . 4 4 26 . . . 12 Haulers Intercepted 13 | . 2 . 6 5 . . . . . . . . . . . . Recyclers Shooed 2 | . 1 . . . . . . . . . . 1 . . . . Parts Field Recycled . | . . . . . . . . . . . . . . . . . Retrieved Matter . | . . . . . . . . . . . . . . . . . Parts Self-Destructed 5 | . . . . . . . 1 . 4 . . . . . . . Prevented . | . . . . . . . . . . . . . . . . . Kills | -11 -10 -10 -9 -8 -7 -7 -7 -7 -6 -6 -6 -5 -5 -5 -4 -3 ------- Run | Jun Mat Min Mat Mat Fac Low Low Dat Pro Fac Ext Fac Upp Upp Fac Res Combat Hostiles Destroyed 79 | . 15 5 23 12 . . 4 . . 3 1 12 . . . 4 Melee 4 | . . . . . . . . . . . 1 3 . . . . Guns 30 | . 15 5 6 1 . . . . . . . . . . . 3 Cannons 14 | . . . 7 4 . . . . . . . 2 . . . 1 AOE 29 | . . . 10 5 . . 4 . . 3 . 7 . . . . Classes Destroyed 15 | . 7 . 4 2 1 . . . . . . 1 . . . . Worker 9 | . . . 2 1 . . . . . 3 . 2 . . . 1 Builder 7 | . 1 . 1 . . . . . . 3 . 2 . . . . Tunneler 3 | . . . . . 1 . . . . 1 . 1 . . . . Hauler 13 | . 2 . 6 5 . . . . . . . . . . . . Recycler 8 | . 1 1 2 1 1 . . . . . . 1 . . . 1 Mechanic 2 | . . . 1 1 . . . . . . . . . . . . Operator 9 | . 2 . 2 1 3 . . . . . . 1 . . . . Watcher 15 | . 3 . 3 3 4 . . . . . 1 1 . . . . Swarmer 34 | . 3 3 4 3 . . 4 1 . 3 . 10 . . . 3 Grunt 29 | . 12 2 9 5 . . . . . . . . . . . 1 Brawler 1 | . . . . 1 . . . . . . . . . . . . Duelist 2 | . . . 2 . . . . . . . . . . . . . Sentry 10 | . . . 8 1 . . . . . . 1 . . . . . Hunter 2 | . . . . 2 . . . . . . . . . . . . Programmer 2 | . . . . . . . . . . . . 2 . . . . Best Kill Streak 13 | . 3 4 5 8 1 . 4 . . 6 1 13 . . . 4 Combat Bots Only 11 | . 3 3 4 3 . . 4 . . 3 1 11 . . . 4 Max Kills in Single Turn 4 | . 1 1 4 3 1 . 2 1 . 3 1 3 . . . 1 Gunslinging . | . . . . . . . . . . . . . . . . . Exploded 4 | . . . 4 2 . . 2 . . 3 . 3 . . . . Melee 1 | . . . . . . . . . . . 1 1 . . . . Uniques/NPCs Destroyed 1 | . . . . . . . . . . . 1 . . . . . A7 (-6/Extension) Combat | -11 -10 -10 -9 -8 -7 -7 -7 -7 -6 -6 -6 -5 -5 -5 -4 -3 -------- Run | Jun Mat Min Mat Mat Fac Low Low Dat Pro Fac Ext Fac Upp Upp Fac Res Damage Taken 8769 | . 558 162 763 819 99 . 104 . 28 281 406 2194 46 . 1252 2057 Core 3138 | . 55 29 147 110 15 . 10 . 12 84 169 805 23 . 367 1312 Absorbed by Shields . | . . . . . . . . . . . . . . . . . Redirected to Shielding 107 | . . . . . . . . . . 3 6 . . . 44 54 Regen/Repaired (Parts) 223 | . . . . 100 . . . . . 5 54 64 . . . . Core Remaining (%) 69 | 100 . 66 63 80 . . . . 94 . 70 . . 17 68 . Volleys Fired 283 | . 65 19 69 58 . . 5 . . 2 8 22 . . 2 33 Largest 2 | . 2 2 2 2 . . 1 . . 1 1 1 . . 1 1 Hottest 101 | . 40 53 101 101 . . 30 . . 30 30 90 . . 30 33 Shots Fired 399 | . 130 35 94 67 . . 5 . . 2 8 22 . . 2 34 Gun 266 | . 130 35 51 17 . . . . . . . . . . 2 31 Cannon 92 | . . . 33 44 . . . . . . . 15 . . . . Launcher 38 | . . . 10 6 . . 5 . . 2 8 7 . . . . Special 3 | . . . . . . . . . . . . . . . . 3 Kinetic 266 | . 130 35 51 17 . . . . . . . . . . 2 31 Thermal 95 | . . . 33 44 . . . . . . . 15 . . . 3 Explosive 38 | . . . 10 6 . . 5 . . 2 8 7 . . . . Electromagnetic . | . . . . . . . . . . . . . . . . . Robot Hit Streak 13 | . 7 8 13 6 . . . . . . . 3 . . 1 6 Robot Miss Streak 4 | . 4 2 3 3 . . . . . 1 . 2 . . 3 2 Penetration Max 1 | . . . . . . . . . . . . . . . . 1 Secondary Targets 2 | . 2 . . . . . . . . . . . . . . . Max Gunslinging Chain 1 | . 1 . . . . . . . . . . . . . . . Shots Hit Robots 301 | . 77 23 63 48 14 . . 1 . 7 15 26 . . 1 26 Core Hits 179 | . 42 11 47 32 6 . 7 . . 4 1 20 . . . 9 Critical Kills 6 | . 1 . 2 2 . . . . . . . . . . . 1 Critical Parts Destroyed 11 | . . . . . 2 . . 1 . . 3 3 . . 1 1 Critical Strikes 19 | . 1 . 2 2 2 . . 1 . . 3 5 . . 1 2 Meltdown 2 | . . . . 2 . . . . . . . . . . . . Destroy 6 | . 1 . 2 . . . . . . . . . . . 1 2 Smash 9 | . . . . . 2 . . 1 . . 3 3 . . . . Sever 2 | . . . . . . . . . . . . 2 . . . . Melee Attacks 209 | . . . . . 91 1 3 1 1 49 15 48 . . . . Impact 128 | . . . . . 39 1 3 1 1 49 15 19 . . . . Slashing 81 | . . . . . 52 . . . . . . 29 . . . . Piercing . | . . . . . . . . . . . . . . . . . Sneak Attacks 33 | . . . . . 4 . . 1 . 7 15 6 . . . . Combat Hostiles 2 | . . . . . . . . . . . 2 . . . . . Follow-up Attacks . | . . . . . . . . . . . . . . . . . Damage Inflicted 10987 | . 894 292 2189 1948 849 . 269 95 . 769 1000 1973 . . 20 689 Guns 2680 | . 819 281 671 250 . . . . . . . . . . 20 639 Cannons 1531 | . . . 536 754 . . . . . . . 241 . . . . Explosions 2993 | . . . 936 931 . . 269 . . 123 . 734 . . . . Melee 3588 | . . . . . 849 . . 95 . 646 1000 998 . . . . Ramming 147 | . 75 11 46 13 . . . . . . . . . . . 2 Kinetic 2680 | . 819 281 671 250 . . . . . . . . . . 20 639 Thermal 1579 | . . . 536 754 . . . . . . . 241 . . . 48 Explosive 2993 | . . . 936 931 . . 269 . . 123 . 734 . . . . Electromagnetic . | . . . . . . . . . . . . . . . . . Impact 2260 | . . . . . 141 . . 95 . 646 1000 378 . . . . Slashing 1328 | . . . . . 708 . . . . . . 620 . . . . Piercing . | . . . . . . . . . . . . . . . . . Highest Corruption 4 | . 1 1 4 2 . . . . . . . 2 2 2 1 2 Average Corruption 1 | . 1 1 4 1 . . . . . . . 1 2 2 1 1 Corruption Purged . | . . . . . . . . . . . . . . . . . Corruption Blocked . | . . . . . . . . . . . . . . . . . Effects 22 | . 2 3 2 4 . . . . . . . 2 4 2 1 2 Message Errors 4 | . 1 1 . . . . . . . . . . . 1 . 1 Matter Fused 5 | . . . . 2 . . . . . . . . 2 1 . . Heat Flow Errors 3 | . . . 1 . . . . . . . . . 1 . 1 . Energy Discharges 1 | . . . . . . . . . . . . . 1 . . . Data Loss (minor) 2 | . . 1 . 1 . . . . . . . . . . . . Data Loss (major) 3 | . 1 1 1 . . . . . . . . . . . . . Misfires 1 | . . . . . . . . . . . . . . . . 1 Alerts 2 | . . . . . . . . . . . . 2 . . . . Weapon Failures 1 | . . . . 1 . . . . . . . . . . . . Overload Shots . | . . . . . . . . . . . . . . . . . Overflow Damage 1764 | . . . 53 14 342 . 21 95 . 380 264 595 . . . . Projectiles 1 | . . . . 1 . . . . . . . . . . . . Explosions 211 | . . . 53 13 . . 21 . . 14 . 110 . . . . Melee 1552 | . . . . . 342 . . 95 . 366 264 485 . . . . Knockbacks 10 | . 3 . . . . . . . . 1 3 3 . . . . Impact 9 | . 3 . . . . . . . . 1 3 2 . . . . Kinetic . | . . . . . . . . . . . . . . . . . Secondary 1 | . . . . . . . . . . . . 1 . . . . Self-Inflicted Damage 469 | . 7 . 177 45 . . 32 . . 65 8 134 . . . 1 Shots 16 | . . . 5 2 . . 1 . . 2 1 5 . . . . Rammed 17 | . 7 4 4 1 . . . . . . . . . . . 1 Targets Rammed 23 | . 8 4 8 2 . . . . . . . . . . . 1 Kicked . | . . . . . . . . . . . . . . . . . Crushed 6 | . 1 . 4 1 . . . . . . . . . . . . Highest Temperature 317 | . 28 40 200 147 1 . . . 1 40 70 317 230 . 242 2 Average Temperature 43 | . 9 13 68 46 1 . . . 1 10 13 143 130 . 134 2 Received Heat Transfer 1122 | . 282 33 216 207 12 . . . 6 60 78 81 9 . 81 57 Siege Activations . | . . . . . . . . . . . . . . . . . Robots Corrupted . | . . . . . . . . . . . . . . . . . Combat Hostiles . | . . . . . . . . . . . . . . . . . Parts Fried 21 | . . . . . 4 . . . . 11 1 5 . . . . Impact Corruptions 33 | . . . . . 2 . . 2 . 13 8 8 . . . . Robots Melted 2 | . . . . 2 . . . . . . . . . . . . Combat Hostiles 2 | . . . . 2 . . . . . . . . . . . . Parts Melted 6 | . . . 1 4 . . . . . . . . . . . 1 Heat Transferred 2590 | . . . 962 1258 . . . . . . . 259 . . . 111 Parts Sabotaged . | . . . . . . . . . . . . . . . . . Parts Stolen . | . . . . . . . . . . . . . . . . . Parts Stripped . | . . . . . . . . . . . . . . . . . Power Chain Reactions . | . . . . . . . . . . . . . . . . . Missiles Intercepted . | . . . . . . . . . . . . . . . . . Alert | -11 -10 -10 -9 -8 -7 -7 -7 -7 -6 -6 -6 -5 -5 -5 -4 -3 ------- Run | Jun Mat Min Mat Mat Fac Low Low Dat Pro Fac Ext Fac Upp Upp Fac Res Peak Influence 643 | . 227 158 541 643 400 . . . . 198 276 436 . . 293 447 Initial 274 | . . 43 . 228 274 . . . . 42 63 119 . . 135 127 Average 185 | . 98 72 211 434 250 . . . . 79 163 162 . . 229 251 Maximum Alert Level 2 | . 1 . 2 2 2 . . . . . 1 2 . . 1 2 Low Security (%) 61 | . 83 100 57 . 31 . . . . 100 52 80 . . 33 37 Level 1 28 | . 16 . 18 43 68 . . . . . 47 6 . . 66 55 Level 2 10 | . . . 23 56 . . . . . . . 12 . . . 6 Level 3 . | . . . . . . . . . . . . . . . . . Level 4 . | . . . . . . . . . . . . . . . . . Level 5 . | . . . . . . . . . . . . . . . . . High Security . | . . . . . . . . . . . . . . . . . Max Security . | . . . . . . . . . . . . . . . . . Squads Dispatched 28 | . 5 . 3 . 7 . . . . 4 . 5 . . 2 2 Investigation 15 | . 3 . 1 . 5 . . . . 3 . 1 . . 1 1 Extermination 6 | . . . . . 1 . . . . 1 . 3 . . 1 . Reinforcement 7 | . 2 . 2 . 1 . . . . . . 1 . . . 1 Assault . | . . . . . . . . . . . . . . . . . Garrison . | . . . . . . . . . . . . . . . . . Intercept . | . . . . . . . . . . . . . . . . . Searches Triggered . | . . . . . . . . . . . . . . . . . Data Miner Redirects 4 | . . . . . . . . . . 2 . 1 . . . 1 Construction Impeded 2 | . . . . . . . . . . . . 1 . . . 1 Haulers Reinforced . | . . . . . . . . . . . . . . . . . Active Scanning Responses . | . . . . . . . . . . . . . . . . . Cargo Convoy Interrupts . | . . . . . . . . . . . . . . . . . Stealth | -11 -10 -10 -9 -8 -7 -7 -7 -7 -6 -6 -6 -5 -5 -5 -4 -3 --------- Run | Jun Mat Min Mat Mat Fac Low Low Dat Pro Fac Ext Fac Upp Upp Fac Res Distress Signals 20 | . 3 . 2 5 . . . . . 1 2 3 . . . 4 Communications Jammed . | . . . . . . . . . . . . . . . . . Distress Signals . | . . . . . . . . . . . . . . . . . Times Spotted 257 | . 20 5 32 22 19 2 6 . 4 21 31 36 1 . 24 34 Peak Tracking Total 15 | . 5 3 4 7 5 3 4 . 3 4 8 10 1 . 15 12 Tactical Retreats 51 | . . . . 2 7 1 1 . 1 9 8 8 1 . 5 8 Traps | -11 -10 -10 -9 -8 -7 -7 -7 -7 -6 -6 -6 -5 -5 -5 -4 -3 ------- Run | Jun Mat Min Mat Mat Fac Low Low Dat Pro Fac Ext Fac Upp Upp Fac Res Traps Triggered 9 | . . . . 2 4 . . . . . 1 . . . . 2 Indirectly . | . . . . . . . . . . . . . . . . . Trap Hack Attempts . | . . . . . . . . . . . . . . . . . Triggered . | . . . . . . . . . . . . . . . . . Disarmed . | . . . . . . . . . . . . . . . . . Reprogrammed . | . . . . . . . . . . . . . . . . . Reused . | . . . . . . . . . . . . . . . . . Traps Extracted . | . . . . . . . . . . . . . . . . . Installed . | . . . . . . . . . . . . . . . . . Triggered . | . . . . . . . . . . . . . . . . . Machines | -11 -10 -10 -9 -8 -7 -7 -7 -7 -6 -6 -6 -5 -5 -5 -4 -3 ---------- Run | Jun Mat Min Mat Mat Fac Low Low Dat Pro Fac Ext Fac Upp Upp Fac Res Machines Disabled 8 | . . . 2 3 1 . . . . . . 2 . . . . Max in Single Turn 1 | . . . 1 1 1 . . . . . . 1 . . . . Garrison Access 6 | . . . . . 4 . . . . 1 . . . . . 1 Machines Repaired . | . . . . . . . . . . . . . . . . . Machines Sabotaged . | . . . . . . . . . . . . . . . . . Overloaded Fab Kills . | . . . . . . . . . . . . . . . . . Hacking | -11 -10 -10 -9 -8 -7 -7 -7 -7 -6 -6 -6 -5 -5 -5 -4 -3 --------- Run | Jun Mat Min Mat Mat Fac Low Low Dat Pro Fac Ext Fac Upp Upp Fac Res Machines Accessed 96 | . 8 . 6 7 32 . 1 4 . 15 6 6 3 . 7 1 Terminals 55 | . 6 . 4 4 18 . . . . 10 6 4 . . 3 . Fabricators 11 | . . . . . 5 . . . . 2 . . . . 4 . Repair Stations 3 | . . . . 1 1 . . . . . . 1 . . . . Recycling Units 8 | . 2 . 1 1 2 . . . . 1 . 1 . . . . Scanalyzers 5 | . . . 1 1 2 . . . . 1 . . . . . . Garrison Access 6 | . . . . . 4 . . . . 1 . . . . . 1 Total Hacks 330 | . 21 . 23 20 115 . 1 26 . 53 22 23 7 . 18 1 Successful 209 | . 11 . 17 11 62 . 1 26 . 38 10 13 7 . 12 1 Failed 120 | . 10 . 6 9 52 . . . . 15 12 10 . . 6 . Catastrophic 17 | . 1 . 1 2 7 . . . . . 1 3 . . 2 . Database Lockouts 1 | . . . . . 1 . . . . . . . . . . . Manual 185 | . 16 . 7 10 69 . . . . 37 19 14 . . 13 . Terminals 210 | . 19 . 10 13 79 . . . . 39 22 18 . . 10 . Fabricators 26 | . . . . . 13 . . . . 5 . . . . 8 . Repair Stations 7 | . . . . 4 1 . . . . . . 2 . . . . Recycling Units 19 | . 2 . 5 1 6 . . . . 2 . 3 . . . . Scanalyzers 23 | . . . 8 2 9 . . . . 4 . . . . . . Garrison Access 11 | . . . . . 7 . . . . 3 . . . . . 1 Terminal Hacks 103 | . 6 . 3 4 29 . 1 26 . 15 3 6 7 . 3 . Record 17 | . . . . 1 . . . 11 . . . . 5 . . . Part Schematic 13 | . . . . . 2 . . 8 . 3 . . . . . . Robot Schematic 6 | . 1 . . . 1 . . 4 . . . . . . . . Robot Analysis 5 | . 3 . . . 1 . . . . . . . . . 1 . Prototype ID Bank 4 | . . . . . 1 . . 3 . . . . . . . . Open Door 4 | . . . . . . . 1 . . . 1 . 2 . . . Level Access Points 4 | . . . . 1 . . . . . 1 . 1 . . 1 . Branch Access Points 6 | . 1 . 1 1 1 . . . . 1 . 1 . . . . Emergency Access Points 2 | . . . . . 2 . . . . . . . . . . . Machine Index 3 | . . . . 1 . . . . . 1 . 1 . . . . Terminal Index 6 | . 1 . 1 . 1 . . . . 1 1 . . . 1 . Alert Level 3 | . . . . . 2 . . . . 1 . . . . . . Unreport Threat 4 | . . . . . 2 . . . . 2 . . . . . . Locate Traps 5 | . . . . . 3 . . . . 1 . 1 . . . . Security Status 2 | . . . . . 1 . . . . . . 1 . . . . Surveillance Status 1 | . . . . . 1 . . . . . . . . . . . Assault Status 1 | . . . . . 1 . . . . . . . . . . . Recall Investigation 2 | . . . . . 2 . . . . . . . . . . . Recall Extermination 3 | . . . . . 1 . . . . 1 . 1 . . . . Hauler Manifests 2 | . . . 1 . 1 . . . . . . . . . . . Registered Components 2 | . . . . . 1 . . . . 1 . . . . . . Registered Prototypes 2 | . . . . . 2 . . . . . . . . . . . Zone Layout 6 | . . . . . 3 . . . . 2 1 . . . . . Fabricator Hacks 10 | . . . . . 4 . . . . 4 . . . . 2 . Network Status 1 | . . . . . 1 . . . . . . . . . . . Load Schematic 3 | . . . . . 1 . . . . 2 . . . . . . Build 6 | . . . . . 2 . . . . 2 . . . . 2 . Repair Station Hacks 3 | . . . . 3 . . . . . . . . . . . . Scan Component 2 | . . . . 2 . . . . . . . . . . . . Repair 1 | . . . . 1 . . . . . . . . . . . . Recycling Unit Hacks 7 | . . . 1 1 2 . . . . 1 . 2 . . . . Report Inventory 4 | . . . 1 1 . . . . . 1 . 1 . . . . Retrieve Matter 1 | . . . . . . . . . . . . 1 . . . . Retrieve Components 2 | . . . . . 2 . . . . . . . . . . . Scanalyzer 21 | . . . 8 1 8 . . . . 4 . . . . . . Insert Component 11 | . . . 4 1 4 . . . . 2 . . . . . . Analyze 10 | . . . 4 . 4 . . . . 2 . . . . . . Garrison Access Hacks 7 | . . . . . 5 . . . . 1 . . . . . 1 Unlock Access 1 | . . . . . 1 . . . . . . . . . . . Seal Access 6 | . . . . . 4 . . . . 1 . . . . . 1 Unauthorized Hacks 58 | . 5 . 5 2 14 . . . . 13 7 5 . . 7 . Terminals 44 | . 3 . 4 2 9 . . . . 12 7 5 . . 2 . Track 9 | . . . . . 2 . . . . 3 2 1 . . 1 . Assimilate 5 | . . . 1 . 1 . . . . 2 . . . . 1 . Botnet 20 | . 2 . 2 2 4 . . . . 5 3 2 . . . . Disrupt 4 | . . . . . 1 . . . . 1 1 1 . . . . Operators 6 | . 1 . 1 . 1 . . . . 1 1 1 . . . . Fabricators 8 | . . . . . 3 . . . . . . . . . 5 . Report 1 | . . . . . . . . . . . . . . . 1 . Liberate 4 | . . . . . 1 . . . . . . . . . 3 . Fabnet 2 | . . . . . 1 . . . . . . . . . 1 . Recompile 1 | . . . . . 1 . . . . . . . . . . . Repair Stations . | . . . . . . . . . . . . . . . . . Recycling Units 6 | . 2 . 1 . 2 . . . . 1 . . . . . . Tunnel 6 | . 2 . 1 . 2 . . . . 1 . . . . . . Scanalyzers . | . . . . . . . . . . . . . . . . . Garrison Access . | . . . . . . . . . . . . . . . . . Data Cores Recovered 3 | . . . . 1 1 . . . . . . 1 . . . . Used 1 | . . . . . . . . . . . . 1 . . . . Hacking Detections 71 | . 6 . 6 7 24 . . . . 12 5 5 . . 6 . Full Trace Events 8 | . 2 . . . 2 . . . . 2 . 1 . . 1 . Feedback Events 1 | . 1 . . . . . . . . . . . . . . . Corruption 1 | . 1 . . . . . . . . . . . . . . . Feedback Blocked . | . . . . . . . . . . . . . . . . . Robot Schematics Acquired 6 | . 1 . . . 1 . . 4 . . . . . . . . Robots Built 7 | . . . . . 4 . . . . . . . . . 3 . Authchips . | . . . . . . . . . . . . . . . . . Time 137 | . . . . . 44 . . . . . . . . . 93 . Total Robot Build Rating 37 | . . . . . 16 . . . . . . . . . 21 . Part Schematics Acquired 23 | . . . 4 . 6 . . 8 . 5 . . . . . . Parts Built 6 | . . . . . 2 . . . . 2 . . . . 2 . Authchips 1 | . . . . . . . . . . 1 . . . . . . Time 285 | . . . . . 73 . . . . 143 . . . . 69 . Total Part Build Rating 33 | . . . . . 6 . . . . 9 . . . . 18 . Parts Repaired 1 | . . . . 1 . . . . . . . . . . . . Time 26 | . . . . 26 . . . . . . . . . . . . Parts Recycled . | . . . . . . . . . . . . . . . . . Recycled Matter . | . . . . . . . . . . . . . . . . . Retrieved Matter . | . . . . . . . . . . . . . . . . . Retrieved Components 3 | . . . . . 3 . . . . . . . . . . . Parts Scanalyzed 10 | . . . 4 1 3 . . . . 2 . . . . . . Part Schematics Acquired 10 | . . . 4 . 4 . . . . 2 . . . . . . Parts Damaged 1 | . . . . . . . . . . 1 . . . . . . Bothacking | -11 -10 -10 -9 -8 -7 -7 -7 -7 -6 -6 -6 -5 -5 -5 -4 -3 ------------ Run | Jun Mat Min Mat Mat Fac Low Low Dat Pro Fac Ext Fac Upp Upp Fac Res Used RIF Installer . | . . . . . . . . . . . . . . . . . Robots Hacked 2 | . . . . . . . . . . . 1 . . . . 1 Non-combat . | . . . . . . . . . . . . . . . . . Combat 2 | . . . . . . . . . . . 1 . . . . 1 Robot Hacks Applied . | . . . . . . . . . . . . . . . . . Relay Couplers Released 2 | . . . . . . . . . . . . . . . . 2 Machine Destruction 2 | . . . . . . . . . . . . . . . . 2 Fabnet Peak Effective % 3 | . . . . . . . . . 3 3 3 1 1 1 . 3 Autooverrided 2 | . . . . . . . . . . . 1 . . . . 1 Robots Rewired 5 | . . . . . . . . . . . 4 1 . . . . Allies Hacked . | . . . . . . . . . . . . . . . . . Hacks Repelled . | . . . . . . . . . . . . . . . . . Allies | -11 -10 -10 -9 -8 -7 -7 -7 -7 -6 -6 -6 -5 -5 -5 -4 -3 -------- Run | Jun Mat Min Mat Mat Fac Low Low Dat Pro Fac Ext Fac Upp Upp Fac Res Total Allies 23 | . . . 1 . 4 . . . 1 1 10 1 . . 4 1 Largest Group 6 | . . . 1 1 4 3 1 1 1 1 6 1 . . 4 1 Highest-Rated Group 167 | . . . 10 10 48 31 7 7 96 10 164 29 . . 167 47 Highest-Rated Ally 159 | . . . 10 10 12 12 7 7 96 10 159 29 . . 47 47 Total Orders . | . . . . . . . . . . . . . . . . . Ally Attacks 98 | . . . . . 19 . . . 10 . 55 4 . . 7 3 Total Damage 2208 | . . . . . 224 . . . 229 . 1388 56 . . 197 114 Kills 16 | . . . . . 3 . . . 3 . 9 . . . 1 . Allies Corrupted 1 | . . . . . . . . . . . 1 . . . . . Allies Melted 1 | . . . . . . . . . . . . . . . 1 . Intel | -11 -10 -10 -9 -8 -7 -7 -7 -7 -6 -6 -6 -5 -5 -5 -4 -3 ------- Run | Jun Mat Min Mat Mat Fac Low Low Dat Pro Fac Ext Fac Upp Upp Fac Res Robot Analysis Total 5 | . 3 . . . 1 . . . . . . . . . 1 . Derelict Logs Recovered 9 | . . 1 . . . 3 2 . . . . . 2 1 . . Drone Launches . | . . . . . . . . . . . . . . . . . Drone Recoveries . | . . . . . . . . . . . . . . . . . Exploration | -11 -10 -10 -9 -8 -7 -7 -7 -7 -6 -6 -6 -5 -5 -5 -4 -3 ------------- Run | Jun Mat Min Mat Mat Fac Low Low Dat Pro Fac Ext Fac Upp Upp Fac Res Turns Passed 9215 | . 1223 609 1595 634 1305 213 219 24 160 1016 585 768 282 34 251 297 Spaces Moved 11945 | 1 599 337 800 279 2722 724 735 79 504 1759 1055 924 495 67 413 452 Core 1189 | . . . . . . . . . . . 1 68 494 67 411 148 Treads 1922 | . 506 337 800 279 . . . . . . . . . . . . Legs 22 | 1 21 . . . . . . . . . . . . . . . Wheels 72 | . 72 . . . . . . . . . . . . . . . Hover 529 | . . . . . . . . . . . . 501 . . 2 26 Flight 8211 | . . . . . 2722 724 735 79 504 1759 1054 355 1 . . 278 Fastest Speed 23 | 120 110 160 160 160 26 26 26 26 26 23 23 26 50 50 50 39 Average Speed 54 | 120 155 160 160 160 26 26 26 26 26 27 33 54 50 50 52 43 Slowest Speed 300 | 120 240 160 160 160 29 26 26 26 26 106 300 100 55 50 200 60 Overloaded Moves 63 | . . . . . . . . . . . 22 41 . . . . Propulsion Burnouts . | . . . . . . . . . . . . . . . . . Robots Hopped 77 | . . . . . 18 . . . . 10 39 4 . . . 6 Cave-ins Triggered . | . . . . . . . . . . . . . . . . . Exploration Rate (%) 53 | 2 91 89 67 34 68 79 82 69 74 34 89 21 62 9 18 16 Regions Visited 16 Branch Regions 8 Pre-discovered Areas 9 | . 2 . 1 . 2 . . 1 . 1 . . 1 1 . . Known Exits Taken 14 | . 1 . 1 1 1 1 1 1 1 1 1 1 1 1 1 . Unknown Exits Taken 2 | 1 . 1 . . . . . . . . . . . . . . Scrap Searched 18 | . . 1 . . . 7 5 . 3 . . . 2 . . . Spaces Dug 283 | . . . 17 12 71 1 25 . 1 44 54 58 . . . . Terrain Destroyed 481 | . . . 83 69 71 1 35 . 1 53 78 90 . . . . Melee 135 | . . . . . 71 1 1 . 1 38 . 23 . . . . Projectile 13 | . . . 4 3 . . . . . . . 6 . . . . AOE 333 | . . . 79 66 . . 34 . . 15 78 61 . . . . Terrain Rammed . | . . . . . . . . . . . . . . . . . Walls Destroyed . | . . . . . . . . . . . . . . . . . Machines Disabled . | . . . . . . . . . . . . . . . . . Actions | -11 -10 -10 -9 -8 -7 -7 -7 -7 -6 -6 -6 -5 -5 -5 -4 -3 --------- Run | Jun Mat Min Mat Mat Fac Low Low Dat Pro Fac Ext Fac Upp Upp Fac Res Total 13811 | . 769 374 1024 397 3122 746 749 79 529 2186 1211 1084 526 66 443 506 Wait 1047 | . 64 8 89 30 246 17 1 . 18 347 130 55 24 . 5 13 Move 11791 | . 598 336 799 278 2686 723 734 78 503 1739 988 916 494 66 412 441 Hop 61 | . . . . . 17 . . . . 9 27 3 . . . 5 Pick Up 67 | . 16 3 16 3 7 2 . . 1 6 . 7 3 . 1 2 Fast Attach 51 | . 3 . 5 8 6 . 1 . 1 3 . 5 4 . 10 5 Attach 39 | . 2 1 2 1 10 . 1 . . 4 2 8 1 . 3 4 Detach 10 | . . . . . 1 . . . . . 1 3 . . 4 1 Swap 78 | . 4 1 12 7 10 1 4 . 3 21 6 9 . . . . Drop 82 | . 9 2 24 10 17 2 . . 2 6 . 3 . . 6 1 Fire 283 | . 65 19 69 58 . . 5 . . 2 8 22 . . 2 33 Melee 208 | . . . . . 91 1 3 1 1 49 15 47 . . . . Ram 2 | . 1 . . . . . . . . . . . . . . 1 Kick . | . . . . . . . . . . . . . . . . . Crush 21 | . 7 4 8 2 . . . . . . . . . . . . Escape Stasis 49 | . . . . . 31 . . . . . 18 . . . . . Rewire 22 | . . . . . . . . . . . 16 6 . . . . Trap . | . . . . . . . . . . . . . . . . . Miscellaneous . | . . . . . . . . . . . . . . . . . Route ------- -11/Junkyard -10/Materials (discovered 5 exits: *Mat x3 / *Min x2) -10/Mines (discovered 2 exits: *Mat x2) -9/Materials (discovered 3 exits: *Mat x2 / *Min) -8/Materials (discovered 5 exits: *Fac x3 / Sto x2) -7/Factory (discovered 5 exits: *Fac x3 / *Low x2) -7/Lower Caves -7/Lower Caves -7/Data Miner -6/Proximity Caves -6/Factory (discovered 8 exits: Fac x4 / *Low x2 / *Ext x2) -6/Extension (discovered 3 exits: *Fac x2 / [*Cet]) -5/Factory (discovered 6 exits: Fac x4 / *Upp x2) -5/Upper Caves -5/Upper Caves -4/Factory (discovered 4 exits: *Res x4) -3/Research (discovered 2 exits: Res / Arm) History --------- Turn | Location | Event 1 | -11/Junkyard | Discovered new exit (range 0) 1 | -11/Junkyard | Entered Materials 61 | -10/Materials | Identified exit to Mines 221 | -10/Materials | Discovered new exit (range 15) 313 | -10/Materials | Build established: Mutant 362 | -10/Materials | Discovered new exit (range 14) 1125 | -10/Materials | Discovered new exit (range 14) 1224 | -10/Materials | Entered Mines 1279 | -10/Mines | Met a Derelict bent on vengeance 1369 | -10/Mines | Learned 8 Materials zone layouts 1434 | -10/Mines | A weapon hastily lodged in a ceiling crevice suddenly fell to the ground 1606 | -10/Mines | Discovered new exit (range 11) 1657 | -10/Mines | Discovered new exit (range 14) 1804 | -10/Mines | Found a damaged Exp. Sensor Array with a note attached 1808 | -10/Mines | Found Prototype Device 1833 | -10/Mines | Entered Materials 1833 | -9/Materials | Evolved 2 slots: Propulsion x1, Utility x1 1834 | -9/Materials | Identified exit to Materials 2297 | -9/Materials | Discovered exit to Materials (range 16) 2434 | -9/Materials | Identified exit to Mines 3428 | -9/Materials | Entered another Materials area 3428 | -8/Materials | Accompanied by 1 ally 3428 | -8/Materials | Evolved 2 slots: Propulsion x1, Utility x1 3536 | -8/Materials | Repaired Lgt. Treads 3610 | -8/Materials | Identified exit to Storage 3971 | -8/Materials | Identified exit to Factory 4062 | -8/Materials | Entered Factory 4062 | -7/Factory | Evolved 2 slots: Utility x2 4137 | -7/Factory | Identified exit to Garrison 4166 | -7/Factory | Discovered new exit (range 10) 4425 | -7/Factory | Build established: Hacker-Sprinter 4451 | -7/Factory | Discovered new exit (range 5) 4452 | -7/Factory | Identified exit to Lower Caves 4718 | -7/Factory | Discovered new exit (range 4) 4719 | -7/Factory | Identified exit to Factory 4772 | -7/Factory | Discovered exit to Factory (range 11) 5056 | -7/Factory | Fabricated Cesium-ion Thruster? 5283 | -7/Factory | Fabricated S-27 Virus? 5363 | -7/Factory | Central database locked down 5367 | -7/Factory | Entered Lower Caves 5367 | -7/Lower Caves | Accompanied by 3 allies 5410 | -7/Lower Caves | Encountered a Warlord checkpoint 5450 | -7/Lower Caves | Learned Factory emergency access door positions 5463 | -7/Lower Caves | Learned Factory emergency access door positions 5518 | -7/Lower Caves | Learned Factory security intel 5571 | -7/Lower Caves | Discovered new exit (range 11) 5573 | -7/Lower Caves | Identified exit to Lower Caves 5580 | -7/Lower Caves | Entered another Lower Caves area 5580 | -7/Lower Caves | Accompanied by 1 ally 5627 | -7/Lower Caves | Learned Factory stockpile data 5726 | -7/Lower Caves | Encountered a Warlord checkpoint 5729 | -7/Lower Caves | Spotted B-75 Beast 5795 | -7/Lower Caves | Discovered new exit (range 12) 5799 | -7/Lower Caves | Identified exit to Data Miner 5799 | -7/Lower Caves | Entered Data Miner 5799 | -7/Data Miner | Accompanied by 1 ally 5799 | -7/Data Miner | Discovered new exit (range 6) 5808 | -7/Data Miner | Met Data Miner 5812 | -7/Data Miner | Learned location of Section 7 (-2) 5812 | -7/Data Miner | Acquired the access code to Warlord's prototype stash 5817 | -7/Data Miner | Received God Mode back door access code from Data Miner 5822 | -7/Data Miner | Identified exit to Proximity Caves 5823 | -7/Data Miner | Entered Proximity Caves 5862 | -6/Proximity Caves | Escorted by Enhanced Grunt 5887 | -6/Proximity Caves | Attracted the attention of an 0b10 checkpoint 5941 | -6/Proximity Caves | Discovered exit to Factory (range 13) 5983 | -6/Proximity Caves | Entered Factory 5983 | -6/Factory | Evolved 2 slots: Propulsion x1, Utility x1 6002 | -6/Factory | Identified exit to Lower Caves 6002 | -6/Factory | Identified exit to Extension 6002 | -6/Factory | Identified exit to Factory 6117 | -6/Factory | Incoming investigation squad redirected 6168 | -6/Factory | Fabricated Lgt. Regenerative Plating? 6246 | -6/Factory | Incoming investigation squad redirected 6578 | -6/Factory | Lost 3 parts (3n) 6840 | -6/Factory | Spotted B-75 Beast 6923 | -6/Factory | Fabricated Cld. VTOL Module (x1) 6999 | -6/Factory | Entered Extension 7035 | -6/Extension | Rescued a captive Derelict 7048 | -6/Extension | Rescued a captive Derelict 7048 | -6/Extension | Rescued a captive Derelict 7061 | -6/Extension | Rescued a captive Derelict 7062 | -6/Extension | Rescued a captive Derelict 7105 | -6/Extension | Rescued a captive Derelict 7187 | -6/Extension | Discovered exit to Factory (range 10) 7187 | -6/Extension | Discovered new exit (range 6) 7382 | -6/Extension | Spotted B-75 Beast 7383 | -6/Extension | Spotted B-75 Beast 7386 | -6/Extension | Discovered exit to Factory (range 3) 7447 | -6/Extension | Rescued A7 7513 | -6/Extension | Destroyed A7 7515 | -6/Extension | Extracted ID and sensor layout for unrecognized location from A7's data core 7584 | -6/Extension | Entered Factory 7584 | -5/Factory | Evolved 2 slots: Propulsion x1, Utility x1 7585 | -5/Factory | Identified exit to Upper Caves 7661 | -5/Factory | Incoming investigation squad redirected 7891 | -5/Factory | Identified exit to Factory 7977 | -5/Factory | Build established: Hacker-Mutant 8290 | -5/Factory | Destroyed 11 combat bots 8313 | -5/Factory | Core integrity fell below 50% 8325 | -5/Factory | Core integrity fell below 20% 8350 | -5/Factory | Lost 16 parts (1p9n3u3w) 8352 | -5/Factory | Entered Upper Caves 8354 | -5/Upper Caves | Attracted the attention of an 0b10 checkpoint 8371 | -5/Upper Caves | Learned Factory stockpile data 8590 | -5/Upper Caves | Learned 8 Research zone layouts 8590 | -5/Upper Caves | Learned Extension stockpile data 8590 | -5/Upper Caves | Learned Extension trap positions 8590 | -5/Upper Caves | Learned Research garrison access intel 8626 | -5/Upper Caves | Learned location of Warlord (-5) 8632 | -5/Upper Caves | Discovered new exit (range 6) 8633 | -5/Upper Caves | Identified exit to Upper Caves 8634 | -5/Upper Caves | Entered another Upper Caves area 8643 | -5/Upper Caves | Discovered exit to Factory (range 10) 8657 | -5/Upper Caves | Learned location of Armory (-3) 8668 | -5/Upper Caves | Entered Factory 8668 | -4/Factory | Evolved 2 slots: Utility x2 8831 | -4/Factory | Fabricated Quantum Reactor (x2) 8844 | -4/Factory | Fabricated G-67 Veteran (x3) 8871 | -4/Factory | Spotted B-86 Titan 8896 | -4/Factory | Identified exit to Research 8919 | -4/Factory | Entered Research 8919 | -3/Research | Evolved 2 slots: Utility x2 8920 | -3/Research | Identified exit to Armory 8921 | -3/Research | Identified exit to Research 8922 | -3/Research | Loaded intel: 4 garrison access locations 8949 | -3/Research | Lost 6 parts (5n1u) 8965 | -3/Research | Local machine network offline 9041 | -3/Research | Lost 3 parts (1n1u1w) 9162 | -3/Research | Spotted B-86 Titan 9166 | -3/Research | Incoming investigation squad redirected 9169 | -3/Research | Core integrity fell below 50% 9199 | -3/Research | Lost 8 parts (1p4n2u1w) 9201 | -3/Research | Core integrity fell below 20% 9210 | -3/Research | Spotted B-86 Titan 9216 | -3/Research | Destroyed by S-43 Plague with Heavy Machine Gun Last Messages --------------- 09156_ Slug penetrates S-43 Plague. 09158_ KE Penetrator destroyed. 09158_ Mic. Antimatter Reactor destroyed. 09159_ Imp. Utility Shielding destroyed. 09159_ Xenon Bombardment Thruster destroyed. 09159_ K-01 Serf collects debris. 09160_ Mak. Flight Unit destroyed. 09162_ R-10 Processor collects Wheel. 09165_ Recycling Unit disabled. 09165_ Adv. Launcher Guidance Computer tumbles out of recycling unit. 09166_ ALERT: Higher priority target reported, redirecting investigation. 09166_ Xenon Bombardment Thruster destroyed. 09168_ Imp. Hacking Suite destroyed. 09168_ Slug penetrates Wall. 09170_ Slammed into K-01 Serf. 09172_ Acquired 3 matter. 09200_ Slug penetrates Wall. 09200_ Penetrated by Slug. 09200_ Slug penetrates Wall. 09214_ Acquired 4 matter. Map ----- +----------------------------------------------------+ | ????????????????? #????????????? | | ????????????????? +????????????? | | ????????????????? #????????????? | | ??????????????????####### ###/####????????????? | | ????????????????????????# # #?????????????? | | ????????????????????????# # #?????????????? | | ????????????????????????# # #?????????????? | | ????????????????????????# # #?????????????? | | ????????????????????????# + #?????????????? | | ????????????????????????# # #?????????????? | | ????????????????????????#### # #?????????????? | | ???????????????????????????# # * #?????????????? | | ???????????????????????????# # #?????????????? | | ???????????????????????????# # #?????????????? | | ???????????????????????????# # #?????????????? | | ???????????????????????????# # #?????????????? | | ???????????????????????????# ################# ??? | | ???????????????????????????# ??? | | ???????????????????????????# #?? | | ???????????????????????????# #?? | | ???????????????????????????#### !!! ?? | | ??????????????????????????????# !!! !!= ?? | | ??????????????????????????????# !!! !!= #?? | | ????????????????????????####??# != #?? | | ???????????????????????##T #### ??? | | ???????????????????????+ @ ss ??? | | ???????????????????????######## ??? | | ??????????????????????????????# ##/#######???? | | ??????????????????????????????###+###?? ????????? | | ???????????????????????????????????????? ??????? | | ?????????????????????????????????????????? ?????? | | ??????????????????????????????????????????? ?????? | | ?????????????????????????????????????????????????? | | ?????????????????????????????????????????????????? | | ?????????????????????????????????????????????????? | | ?????????????????????????????????????????????????? | | ?????????????????????????????????????????????????? | | ?????????????????????????????????????????????????? | | ?????????????????????????????????????????????????? | | ?????????????????????????????????????????????????? | | ?????????????????????????????????????????????????? | | ?????????????????????????????????????????????????? | | ?????????????????????????????????????????????????? | | ?????????????????????????????????????????????????? | | ?????????????????????????????????????????????????? | | ?????????????????????????????????????????????????? | | ?????????????????????????????????????????????????? | | ?????????????????????????????????????????????????? | | ?????????????????????????????????????????? #?????? | | ?????????????????????????????????????????? ####### | +----------------------------------------------------+ Best States ------------- Heat Dissipation 46 Energy Generation 19 Energy Capacity 280 Matter Stores 300 Matter Capacity 300 Sight Range 16 Robot Scan Range 15 Terrain Scan Density 10 ECM Strength 2 Armor Coverage 150 Utility Shielding 66 Evasion (%) 65 Targeting Accuracy 16 Target Analysis 9 Recoil Reduction 4 Offensive Hacking 38 Defensive Hacking 20 Authchip Count 1 Item Schematics ----------------- Hacking Suite | -9/Materials | Scanalyzed Mni. Grenade Launcher | -9/Materials | Scanalyzed Cesium-ion Thruster | -9/Materials | Scanalyzed Imp. Terrain Scanner | -9/Materials | Scanalyzed Enh. Autogun | -7/Factory | Scanalyzed Imp. Light Armor Plating | -7/Factory | Hacked Imp. Hacking Suite | -7/Factory | Scanalyzed Adv. ECM Suite | -7/Factory | Scanalyzed Imp. Utility Shielding | -7/Factory | Scanalyzed Sml. Storage Unit | -7/Factory | Hacked Combat Drone Bay | -7/Data Miner | Free Lgt. Regenerative Plating | -7/Data Miner | Free Biomechanical Wings | -7/Data Miner | Free Exp. Targeting Computer | -7/Data Miner | Free Force Rifle | -7/Data Miner | Free Imp. Corruption Screen | -7/Data Miner | Free Gyrokinetic Inverter | -7/Data Miner | Free KE Penetrator | -7/Data Miner | Free Cld. VTOL Module | -6/Factory | Hacked Adv. Signal Interpreter | -6/Factory | Hacked Mak. ECM Suite | -6/Factory | Scanalyzed Adv. Terrain Scanner | -6/Factory | Scanalyzed Imp. Propulsion Shielding | -6/Factory | Hacked Robot Schematics ------------------ S-10 Pest | -10/Materials | Hacked P-60 Hacker | -7/Factory | Hacked M-14 Sweeper | -7/Data Miner | Free M-22 Extractor | -7/Data Miner | Free B-48 Gladiator | -7/Data Miner | Free G-50 Soldier | -7/Data Miner | Free Fabricated ------------ Cesium-ion Thruster | x2 | -7/Factory S-27 Virus | x4 | -7/Factory | Preloaded Lgt. Regenerative Plating | x1 | -6/Factory Cld. VTOL Module | x1 | -6/Factory | Authchip Quantum Reactor | x2 | -4/Factory | Preloaded G-67 Veteran | x3 | -4/Factory | Preloaded Alien Tech Used ----------------- None Achievements -------------- None Challenges ------------ None Game ------ Seed MiningCatalystSpecial Manual? 0 Play Time 02:33:49 Cumulative 363.2 hours Start 2023.03.31 @ 09:31:01 End 2023.03.31 @ 12:13:14 Sessions 1 Manual Loads 0 Difficulty Rogue Special Mode None Game No. 409 Rogue 409 Adventurer 0 Explorer 0 Win Type - Total 11 Types 8/0/2/1/0/0/0/0/0 Lore% 80 Gallery% 89 Achievement% 78 Wizard Run 0 Options --------- ASCII 0 Keyboard 0 Movement Numpad Keybinds 0 Fullscreen 1 Font 18/Terminus Map View 76x50 Tactical HUD 1 Map Filters NONE Filters NONE Steam 1 RUN: d3638d1d-6fa5-4bf7-985f-49daf1344d7b